[Event "Titled Tuesday Blitz October 11 Early 2022"]
[White "Winterberg, Lukas"]
[Black "Subelj, Jan"]
[WhiteFideId "24622702"]
[BlackFideId "14618583"]
[WhiteElo "2349"]
[BlackElo "2394"]
[Result "1-0"]
[Round "07"]
[TimeControl "180+1"]
[Date "2022.10.12"]
[WhiteClock "0:00:43"]
[BlackClock "0:00:40"]

1. c4 {[%clk 0:03:00]}  e5 {[%clk 0:02:57]} 2. g3 {[%clk 0:03:00]}  c6 {[%clk 0:02:57]} 3. Bg2 {[%clk 0:03:01]}  d5 {[%clk 0:02:56]} 4. cxd5 {[%clk 0:03:02]}  cxd5 {[%clk 0:02:57]} 5. Nf3 {[%clk 0:03:02]}  Nc6 {[%clk 0:02:56]} 6. O-O {[%clk 0:03:01]}  e4 {[%clk 0:02:55]} 7. Ne1 {[%clk 0:03:01]}  f5 {[%clk 0:02:53]} 8. d3 {[%clk 0:03:01]}  Be7 {[%clk 0:02:52]} 9. dxe4 {[%clk 0:03:01]}  dxe4 {[%clk 0:02:52]} 10. Qxd8+ {[%clk 0:03:00]}  Bxd8 {[%clk 0:02:53]} 11. Nc3 {[%clk 0:03:00]}  Nf6 {[%clk 0:02:52]} 12. f3 {[%clk 0:03:00]}  Bb6+ {[%clk 0:02:52]} 13. Kh1 {[%clk 0:02:59]}  exf3 {[%clk 0:02:51]} 14. exf3 {[%clk 0:02:59]}  O-O {[%clk 0:02:51]} 15. Nd3 {[%clk 0:02:55]}  Nd4 {[%clk 0:02:48]} 16. Bg5 {[%clk 0:02:50]}  Nc2 {[%clk 0:02:45]} 17. Rac1 {[%clk 0:02:37]}  Ne3 {[%clk 0:02:33]} 18. Rfe1 {[%clk 0:02:37]}  Nxg2 {[%clk 0:02:32]} 19. Kxg2 {[%clk 0:02:38]}  Bd7 {[%clk 0:02:28]} 20. Bxf6 {[%clk 0:02:33]}  Rxf6 {[%clk 0:02:26]} 21. Nd5 {[%clk 0:02:34]}  Rd6 {[%clk 0:02:23]} 22. Nxb6 {[%clk 0:02:24]}  axb6 {[%clk 0:02:24]} 23. Nb4 {[%clk 0:02:24]}  Rd2+ {[%clk 0:02:21]} 24. Kh3 {[%clk 0:02:24]}  Rxb2 {[%clk 0:02:19]} 25. Rc7 {[%clk 0:02:23]}  Be8 {[%clk 0:01:57]} 26. a3 {[%clk 0:01:39]}  Bf7 {[%clk 0:01:45]} 27. Ree7 {[%clk 0:01:38]}  Rf8 {[%clk 0:01:44]} 28. Nd3 {[%clk 0:01:33]}  Rd2 {[%clk 0:01:23]} 29. Ne5 {[%clk 0:01:33]}  Re2 {[%clk 0:01:24]} 30. Rxb7 {[%clk 0:01:28]}  g5 {[%clk 0:01:20]} 31. Rxf7 {[%clk 0:01:14]}  Rxf7 {[%clk 0:01:15]} 32. Nxf7 {[%clk 0:01:15]}  g4+ {[%clk 0:01:12]} 33. fxg4 {[%clk 0:01:15]}  fxg4+ {[%clk 0:01:13]} 34. Kxg4 {[%clk 0:01:16]}  Rxh2 {[%clk 0:01:14]} 35. Ng5 {[%clk 0:01:13]}  Ra2 {[%clk 0:01:13]} 36. Rxb6 {[%clk 0:01:07]}  Rxa3 {[%clk 0:01:12]} 37. Rb7 {[%clk 0:01:08]}  Ra4+ {[%clk 0:01:11]} 38. Kh5 {[%clk 0:01:07]}  Ra5 {[%clk 0:01:09]} 39. Rxh7 {[%clk 0:01:02]}  Ra3 {[%clk 0:01:07]} 40. g4 {[%clk 0:00:55]}  Ra6 {[%clk 0:00:58]} 41. Re7 {[%clk 0:00:54]}  Rb6 {[%clk 0:00:56]} 42. Ne6 {[%clk 0:00:52]}  Rb4 {[%clk 0:00:47]} 43. g5 {[%clk 0:00:50]}  Rb8 {[%clk 0:00:46]} 44. Kh6 {[%clk 0:00:47]}  Kh8 {[%clk 0:00:45]} 45. Nf4 {[%clk 0:00:42]}  Kg8 {[%clk 0:00:38]} 46. Rg7+ {[%clk 0:00:40]}  Kf8 {[%clk 0:00:38]} 47. Ng6+ {[%clk 0:00:41]}  Ke8 {[%clk 0:00:39]} 48. Rg8+ {[%clk 0:00:42]}  Kd7 {[%clk 0:00:39]} 49. Rxb8 {[%clk 0:00:42]}  Ke6 {[%clk 0:00:40]} 50. Rf8 {[%clk 0:00:43]} 1-0


[Site "https://www.chess.com"]

[Event "Titled Tuesday Blitz October 11 Early 2022"]
[White "Zaksaite, Salomeja"]
[Black "Winkels, Marcel"]
[WhiteFideId "12801496"]
[BlackFideId "1003887"]
[WhiteElo "2094"]
[BlackElo "1900"]
[Result "0-1"]
[Round "07"]
[TimeControl "180+1"]
[Date "2022.10.12"]
[WhiteClock "0:00:01"]
[BlackClock "0:01:53"]

1. e4 {[%clk 0:03:00]}  c5 {[%clk 0:02:58]} 2. Nf3 {[%clk 0:03:00]}  d6 {[%clk 0:02:59]} 3. d4 {[%clk 0:02:59]}  cxd4 {[%clk 0:03:00]} 4. Nxd4 {[%clk 0:03:00]}  Nf6 {[%clk 0:02:59]} 5. Nc3 {[%clk 0:03:00]}  a6 {[%clk 0:03:00]} 6. Bc4 {[%clk 0:03:00]}  e6 {[%clk 0:02:58]} 7. Bb3 {[%clk 0:02:55]}  b5 {[%clk 0:02:57]} 8. O-O {[%clk 0:02:55]}  Be7 {[%clk 0:02:54]} 9. Qf3 {[%clk 0:02:55]}  Bb7 {[%clk 0:02:45]} 10. Bxe6 {[%clk 0:02:54]}  b4 {[%clk 0:02:36]} 11. Nd5 {[%clk 0:02:47]}  O-O {[%clk 0:02:17]} 12. Bh3 {[%clk 0:00:47]}  Nxd5 {[%clk 0:02:06]} 13. exd5 {[%clk 0:00:46]}  Bf6 {[%clk 0:02:07]} 14. Be3 {[%clk 0:00:21]}  Nd7 {[%clk 0:02:05]} 15. Bxd7 {[%clk 0:00:11]}  Qxd7 {[%clk 0:02:04]} 16. Rad1 {[%clk 0:00:09]}  Rac8 {[%clk 0:02:03]} 17. Qe4 {[%clk 0:00:04]}  Rfe8 {[%clk 0:01:59]} 18. Qd3 {[%clk 0:00:04]}  Re5 {[%clk 0:01:58]} 19. c4 {[%clk 0:00:03]}  bxc3 {[%clk 0:01:57]} 20. bxc3 {[%clk 0:00:03]}  Bxd5 {[%clk 0:01:54]} 21. Nf3 {[%clk 0:00:01]}  Bc4 {[%clk 0:01:53]} 0-1


[Site "https://www.chess.com"]

[Event "Titled Tuesday Blitz October 11 Early 2022"]
[White "Zemlyanskii, Ivan"]
[Black "Terry, Renato"]
[WhiteFideId "24249971"]
[BlackFideId "3803457"]
[WhiteElo "2107"]
[BlackElo "2577"]
[Result "0-1"]
[Round "07"]
[TimeControl "180+1"]
[Date "2022.10.11"]
[WhiteClock "0:00:02"]
[BlackClock "0:00:03"]

1. d4 {[%clk 0:02:58]}  e6 {[%clk 0:03:00]} 2. c4 {[%clk 0:02:57]}  Bb4+ {[%clk 0:03:00]} 3. Nc3 {[%clk 0:02:49]}  c5 {[%clk 0:02:58]} 4. e3 {[%clk 0:02:42]}  Nf6 {[%clk 0:02:52]} 5. Ne2 {[%clk 0:02:37]}  cxd4 {[%clk 0:02:51]} 6. exd4 {[%clk 0:02:36]}  d5 {[%clk 0:02:51]} 7. a3 {[%clk 0:02:37]}  Be7 {[%clk 0:02:47]} 8. cxd5 {[%clk 0:02:35]}  exd5 {[%clk 0:02:44]} 9. Nf4 {[%clk 0:02:30]}  Nc6 {[%clk 0:02:44]} 10. Be2 {[%clk 0:02:20]}  O-O {[%clk 0:02:44]} 11. Be3 {[%clk 0:02:20]}  Re8 {[%clk 0:02:39]} 12. O-O {[%clk 0:02:18]}  Bd6 {[%clk 0:02:39]} 13. Bf3 {[%clk 0:02:18]}  Be6 {[%clk 0:02:18]} 14. Nxe6 {[%clk 0:02:17]}  fxe6 {[%clk 0:02:18]} 15. g3 {[%clk 0:02:18]}  Na5 {[%clk 0:02:16]} 16. Re1 {[%clk 0:02:06]}  Rc8 {[%clk 0:02:13]} 17. Rc1 {[%clk 0:01:56]}  Nc4 {[%clk 0:02:12]} 18. Rc2 {[%clk 0:01:42]}  Nxb2 {[%clk 0:01:28]} 19. Rxb2 {[%clk 0:01:43]}  Rxc3 {[%clk 0:01:28]} 20. Rxb7 {[%clk 0:01:43]}  Rxa3 {[%clk 0:01:27]} 21. Bg5 {[%clk 0:01:39]}  Qc8 {[%clk 0:01:24]} 22. Rb2 {[%clk 0:01:21]}  Qc3 {[%clk 0:01:22]} 23. Bxf6 {[%clk 0:00:47]}  Qxb2 {[%clk 0:01:18]} 24. Bxd5 {[%clk 0:00:20]}  gxf6 {[%clk 0:01:07]} 25. Qg4+ {[%clk 0:00:20]}  Kh8 {[%clk 0:01:06]} 26. Rxe6 {[%clk 0:00:19]}  Qb8 {[%clk 0:00:46]} 27. Rxf6 {[%clk 0:00:12]}  Rf8 {[%clk 0:00:31]} 28. Rh6 {[%clk 0:00:10]}  Qc7 {[%clk 0:00:27]} 29. Qe6 {[%clk 0:00:08]}  Ra6 {[%clk 0:00:15]} 30. Be4 {[%clk 0:00:06]}  Rf7 {[%clk 0:00:13]} 31. Qe8+ {[%clk 0:00:02]}  Bf8 {[%clk 0:00:06]} 32. Rxh7+ {[%clk 0:00:01]}  Kg8 {[%clk 0:00:03]} 33. Bd5 {[%clk 0:00:02]}  Kxh7 {[%clk 0:00:03]} 34. Bxf7 {[%clk 0:00:01]}  Qe7 {[%clk 0:00:03]} 35. Bd5 {[%clk 0:00:02]}  Qxe8 {[%clk 0:00:03]} 0-1


[Site "https://www.chess.com"]

[Event "Titled Tuesday Blitz October 11 Early 2022"]
[White "Zierk, Steven"]
[Black "Rustemov, Alexander"]
[WhiteFideId "2034255"]
[BlackFideId "4119002"]
[WhiteElo "2494"]
[BlackElo "2833"]
[Result "0-1"]
[Round "07"]
[TimeControl "180+1"]
[Date "2022.10.11"]
[WhiteClock "0:00:07"]
[BlackClock "0:00:04"]

1. e4 {[%clk 0:02:58]}  e6 {[%clk 0:02:59]} 2. d4 {[%clk 0:02:58]}  d5 {[%clk 0:02:59]} 3. Nd2 {[%clk 0:02:59]}  dxe4 {[%clk 0:02:59]} 4. Nxe4 {[%clk 0:02:58]}  Bd7 {[%clk 0:02:59]} 5. Nf3 {[%clk 0:02:58]}  Bc6 {[%clk 0:03:00]} 6. Bd3 {[%clk 0:02:59]}  Nd7 {[%clk 0:03:00]} 7. O-O {[%clk 0:02:56]}  Ngf6 {[%clk 0:03:00]} 8. Ng3 {[%clk 0:02:54]}  Be7 {[%clk 0:03:00]} 9. b3 {[%clk 0:02:47]}  b5 {[%clk 0:02:59]} 10. Qe2 {[%clk 0:02:33]}  b4 {[%clk 0:02:56]} 11. Bb5 {[%clk 0:02:18]}  Bxb5 {[%clk 0:02:51]} 12. Qxb5 {[%clk 0:02:19]}  O-O {[%clk 0:02:46]} 13. a4 {[%clk 0:02:05]}  Nd5 {[%clk 0:02:40]} 14. Ne4 {[%clk 0:01:42]}  N7f6 {[%clk 0:02:37]} 15. Qd3 {[%clk 0:01:37]}  a5 {[%clk 0:02:32]} 16. Ne5 {[%clk 0:01:34]}  Nxe4 {[%clk 0:02:26]} 17. Qxe4 {[%clk 0:01:35]}  Bf6 {[%clk 0:02:24]} 18. Bb2 {[%clk 0:01:30]}  Qd6 {[%clk 0:02:08]} 19. Nc4 {[%clk 0:01:25]}  Qa6 {[%clk 0:02:04]} 20. Rad1 {[%clk 0:01:22]}  Rfd8 {[%clk 0:02:03]} 21. Rd3 {[%clk 0:01:19]}  g6 {[%clk 0:01:43]} 22. Rf3 {[%clk 0:01:06]}  Bg7 {[%clk 0:01:42]} 23. Ne5 {[%clk 0:01:03]}  Bxe5 {[%clk 0:01:18]} 24. Qxe5 {[%clk 0:01:00]}  Qd6 {[%clk 0:01:17]} 25. Qg5 {[%clk 0:00:55]}  Qe7 {[%clk 0:01:12]} 26. Qg3 {[%clk 0:00:55]}  Rd7 {[%clk 0:01:04]} 27. h4 {[%clk 0:00:53]}  h5 {[%clk 0:01:00]} 28. Rd1 {[%clk 0:00:49]}  Kg7 {[%clk 0:00:59]} 29. Qe5+ {[%clk 0:00:46]}  f6 {[%clk 0:00:59]} 30. Qe4 {[%clk 0:00:42]}  Qf7 {[%clk 0:00:55]} 31. Re1 {[%clk 0:00:40]}  Ra6 {[%clk 0:00:55]} 32. Rg3 {[%clk 0:00:38]}  Rad6 {[%clk 0:00:54]} 33. Qe2 {[%clk 0:00:36]}  Ne7 {[%clk 0:00:52]} 34. d5 {[%clk 0:00:21]}  Rxd5 {[%clk 0:00:36]} 35. Qxe6 {[%clk 0:00:21]}  Rd1 {[%clk 0:00:30]} 36. Re3 {[%clk 0:00:17]}  Qxe6 {[%clk 0:00:25]} 37. Rxe6 {[%clk 0:00:17]}  Rxe1+ {[%clk 0:00:25]} 38. Rxe1 {[%clk 0:00:18]}  Kf7 {[%clk 0:00:25]} 39. Kf1 {[%clk 0:00:18]}  Nf5 {[%clk 0:00:22]} 40. Re4 {[%clk 0:00:17]}  c5 {[%clk 0:00:17]} 41. Rc4 {[%clk 0:00:16]}  Rd5 {[%clk 0:00:17]} 42. g3 {[%clk 0:00:16]}  Ke6 {[%clk 0:00:17]} 43. Rf4 {[%clk 0:00:16]}  Rd2 {[%clk 0:00:16]} 44. Rc4 {[%clk 0:00:14]}  Rd5 {[%clk 0:00:13]} 45. Ke2 {[%clk 0:00:14]}  Nd6 {[%clk 0:00:12]} 46. Rf4 {[%clk 0:00:14]}  f5 {[%clk 0:00:12]} 47. Rf3 {[%clk 0:00:14]}  Ne4 {[%clk 0:00:11]} 48. Re3 {[%clk 0:00:14]}  Rd2+ {[%clk 0:00:10]} 49. Ke1 {[%clk 0:00:14]}  Rxc2 {[%clk 0:00:11]} 50. Bg7 {[%clk 0:00:12]}  Kd5 {[%clk 0:00:10]} 51. f3 {[%clk 0:00:12]}  Nd2 {[%clk 0:00:09]} 52. Re5+ {[%clk 0:00:10]}  Kd6 {[%clk 0:00:09]} 53. Re3 {[%clk 0:00:09]}  c4 {[%clk 0:00:09]} 54. bxc4 {[%clk 0:00:09]}  Nxc4 {[%clk 0:00:09]} 55. Rd3+ {[%clk 0:00:09]}  Kc6 {[%clk 0:00:09]} 56. Bf6 {[%clk 0:00:08]}  Ra2 {[%clk 0:00:09]} 57. Rd4 {[%clk 0:00:07]}  Kc5 {[%clk 0:00:08]} 58. Rd8 {[%clk 0:00:07]}  Rxa4 {[%clk 0:00:09]} 59. Be7+ {[%clk 0:00:08]}  Kc6 {[%clk 0:00:09]} 60. Rg8 {[%clk 0:00:08]}  b3 {[%clk 0:00:08]} 61. Rxg6+ {[%clk 0:00:08]}  Kb5 {[%clk 0:00:07]} 62. Bf6 {[%clk 0:00:06]}  b2 {[%clk 0:00:05]} 63. Bxb2 {[%clk 0:00:06]}  Nxb2 {[%clk 0:00:06]} 64. Rg5 {[%clk 0:00:07]}  Rc4 {[%clk 0:00:06]} 65. Rxh5 {[%clk 0:00:06]}  Rc5 {[%clk 0:00:05]} 66. Rxf5 {[%clk 0:00:07]}  Rxf5 {[%clk 0:00:04]} 0-1


[Site "https://www.chess.com"]

[Event "Titled Tuesday Blitz October 11 Early 2022"]
[White "Aarav Dengla"]
[Black "Demin, Vladimir"]
[WhiteFideId "45059756"]
[BlackFideId "4167457"]
[WhiteElo "2257"]
[BlackElo "2569"]
[Result "1/2-1/2"]
[Round "08"]
[TimeControl "180+1"]
[Date "2022.10.12"]
[WhiteClock "0:00:40"]
[BlackClock "0:01:15"]

1. e4 {[%clk 0:03:00]}  Nf6 {[%clk 0:02:58]} 2. e5 {[%clk 0:03:00]}  Nd5 {[%clk 0:02:58]} 3. d4 {[%clk 0:03:00]}  d6 {[%clk 0:02:57]} 4. Nf3 {[%clk 0:03:00]}  dxe5 {[%clk 0:02:57]} 5. Nxe5 {[%clk 0:02:57]}  c6 {[%clk 0:02:57]} 6. Be2 {[%clk 0:02:52]}  Nd7 {[%clk 0:02:56]} 7. Nxd7 {[%clk 0:02:47]}  Bxd7 {[%clk 0:02:57]} 8. c4 {[%clk 0:02:48]}  Nf6 {[%clk 0:02:56]} 9. Nc3 {[%clk 0:02:49]}  Bf5 {[%clk 0:02:55]} 10. O-O {[%clk 0:02:47]}  e6 {[%clk 0:02:55]} 11. h3 {[%clk 0:02:31]}  Bd6 {[%clk 0:02:44]} 12. Be3 {[%clk 0:02:28]}  Bc7 {[%clk 0:02:41]} 13. Qb3 {[%clk 0:02:22]}  Rb8 {[%clk 0:02:38]} 14. Qa3 {[%clk 0:02:20]}  a5 {[%clk 0:02:35]} 15. f4 {[%clk 0:02:08]}  Bd6 {[%clk 0:02:34]} 16. Qa4 {[%clk 0:02:05]}  O-O {[%clk 0:02:33]} 17. g4 {[%clk 0:02:05]}  Bg6 {[%clk 0:02:32]} 18. c5 {[%clk 0:01:59]}  Bc7 {[%clk 0:02:32]} 19. Qd1 {[%clk 0:01:55]}  Be4 {[%clk 0:02:24]} 20. Nxe4 {[%clk 0:01:50]}  Nxe4 {[%clk 0:02:24]} 21. Bf3 {[%clk 0:01:42]}  Nf6 {[%clk 0:02:23]} 22. Qd2 {[%clk 0:01:27]}  Nd5 {[%clk 0:02:22]} 23. Bxd5 {[%clk 0:01:27]}  Qxd5 {[%clk 0:02:21]} 24. Qg2 {[%clk 0:01:26]}  Rfd8 {[%clk 0:02:18]} 25. Qxd5 {[%clk 0:01:23]}  Rxd5 {[%clk 0:02:19]} 26. Kg2 {[%clk 0:01:22]}  Rbd8 {[%clk 0:02:18]} 27. Kf3 {[%clk 0:01:21]}  R8d7 {[%clk 0:02:12]} 28. Rac1 {[%clk 0:01:20]}  Bd8 {[%clk 0:02:12]} 29. g5 {[%clk 0:01:20]}  f6 {[%clk 0:02:11]} 30. h4 {[%clk 0:01:20]}  Kf7 {[%clk 0:02:11]} 31. Rc3 {[%clk 0:01:19]}  h6 {[%clk 0:02:07]} 32. gxh6 {[%clk 0:01:12]}  gxh6 {[%clk 0:02:06]} 33. Rg1 {[%clk 0:01:11]}  f5 {[%clk 0:02:03]} 34. h5 {[%clk 0:01:11]}  Bf6 {[%clk 0:02:02]} 35. Rg6 {[%clk 0:01:10]}  Bxd4 {[%clk 0:01:46]} 36. Bxd4 {[%clk 0:01:09]}  Rxd4 {[%clk 0:01:46]} 37. Rxh6 {[%clk 0:01:10]}  Rd3+ {[%clk 0:01:46]} 38. Rxd3 {[%clk 0:01:09]}  Rxd3+ {[%clk 0:01:47]} 39. Ke2 {[%clk 0:01:09]}  Rd5 {[%clk 0:01:45]} 40. Rh7+ {[%clk 0:00:59]}  Kf6 {[%clk 0:01:45]} 41. Rxb7 {[%clk 0:00:58]}  Rxc5 {[%clk 0:01:43]} 42. h6 {[%clk 0:00:58]}  Rc2+ {[%clk 0:01:44]} 43. Kd3 {[%clk 0:00:58]}  Rh2 {[%clk 0:01:43]} 44. h7 {[%clk 0:00:59]}  e5 {[%clk 0:01:42]} 45. Ke3 {[%clk 0:00:50]}  Rh3+ {[%clk 0:01:41]} 46. Kf2 {[%clk 0:00:49]}  exf4 {[%clk 0:01:41]} 47. Kg2 {[%clk 0:00:49]}  Rh6 {[%clk 0:01:40]} 48. Kf3 {[%clk 0:00:49]}  Rh4 {[%clk 0:01:37]} 49. Rc7 {[%clk 0:00:49]}  Ke5 {[%clk 0:01:36]} 50. a3 {[%clk 0:00:43]}  Rh3+ {[%clk 0:01:36]} 51. Kg2 {[%clk 0:00:43]}  Rh6 {[%clk 0:01:34]} 52. b4 {[%clk 0:00:41]}  axb4 {[%clk 0:01:32]} 53. axb4 {[%clk 0:00:42]}  Ke4 {[%clk 0:01:27]} 54. Re7+ {[%clk 0:00:41]}  Kd5 {[%clk 0:01:27]} 55. Kf3 {[%clk 0:00:42]}  Kc4 {[%clk 0:01:26]} 56. Kxf4 {[%clk 0:00:38]}  Kxb4 {[%clk 0:01:17]} 57. Kxf5 {[%clk 0:00:39]}  c5 {[%clk 0:01:16]} 58. Kg5 {[%clk 0:00:37]}  Rh1 {[%clk 0:01:16]} 59. Kg6 {[%clk 0:00:37]}  c4 {[%clk 0:01:17]} 60. Kg7 {[%clk 0:00:37]}  c3 {[%clk 0:01:16]} 61. Rc7 {[%clk 0:00:37]}  Kb3 {[%clk 0:01:16]} 62. h8=Q {[%clk 0:00:37]}  Rxh8 {[%clk 0:01:15]} 63. Kxh8 {[%clk 0:00:38]}  c2 {[%clk 0:01:15]} 64. Kg7 {[%clk 0:00:39]}  Kb2 {[%clk 0:01:16]} 65. Rb7+ {[%clk 0:00:37]}  Kc3 {[%clk 0:01:15]} 66. Rc7+ {[%clk 0:00:38]}  Kd2 {[%clk 0:01:16]} 67. Kf6 {[%clk 0:00:39]}  c1=Q {[%clk 0:01:15]} 68. Rxc1 {[%clk 0:00:40]}  Kxc1 {[%clk 0:01:15]} 1/2-1/2


[Site "https://www.chess.com"]

[Event "Titled Tuesday Blitz October 11 Early 2022"]
[White "Aguilar, Juan"]
[Black "Laohawirapap, Prin"]
[WhiteFideId "3800091"]
[BlackFideId "6205003"]
[WhiteElo "2382"]
[BlackElo "2113"]
[Result "0-1"]
[Round "08"]
[TimeControl "180+1"]
[Date "2022.10.12"]
[WhiteClock "0:00:02"]
[BlackClock "0:00:10"]

1. d4 {[%clk 0:03:00]}  Nf6 {[%clk 0:03:00]} 2. c4 {[%clk 0:03:01]}  g6 {[%clk 0:03:00]} 3. Nc3 {[%clk 0:03:01]}  Bg7 {[%clk 0:03:01]} 4. e4 {[%clk 0:03:01]}  d6 {[%clk 0:03:01]} 5. Nf3 {[%clk 0:03:02]}  O-O {[%clk 0:03:02]} 6. Be2 {[%clk 0:03:03]}  e5 {[%clk 0:03:03]} 7. d5 {[%clk 0:03:03]}  a5 {[%clk 0:03:00]} 8. Bg5 {[%clk 0:03:02]}  h6 {[%clk 0:02:57]} 9. Bh4 {[%clk 0:03:02]}  Na6 {[%clk 0:02:54]} 10. Nd2 {[%clk 0:03:01]}  c6 {[%clk 0:02:34]} 11. O-O {[%clk 0:02:58]}  Nc5 {[%clk 0:02:32]} 12. b3 {[%clk 0:02:53]}  Nfxe4 {[%clk 0:02:30]} 13. Bxd8 {[%clk 0:02:46]}  Nxc3 {[%clk 0:02:30]} 14. Qe1 {[%clk 0:02:43]}  Nxe2+ {[%clk 0:02:31]} 15. Qxe2 {[%clk 0:02:42]}  Rxd8 {[%clk 0:02:32]} 16. Rad1 {[%clk 0:02:28]}  Bf5 {[%clk 0:02:26]} 17. Nf3 {[%clk 0:02:15]}  cxd5 {[%clk 0:02:15]} 18. Rxd5 {[%clk 0:01:58]}  Be4 {[%clk 0:02:15]} 19. Rd2 {[%clk 0:01:52]}  Bc6 {[%clk 0:02:13]} 20. Rfd1 {[%clk 0:01:50]}  Ne4 {[%clk 0:02:14]} 21. Rd3 {[%clk 0:01:49]}  f5 {[%clk 0:02:10]} 22. c5 {[%clk 0:01:32]}  d5 {[%clk 0:01:57]} 23. Qc2 {[%clk 0:01:21]}  d4 {[%clk 0:01:47]} 24. Nh4 {[%clk 0:01:01]}  Kh7 {[%clk 0:01:45]} 25. f3 {[%clk 0:00:50]}  Nc3 {[%clk 0:01:44]} 26. Rxc3 {[%clk 0:00:40]}  dxc3 {[%clk 0:01:44]} 27. Rxd8 {[%clk 0:00:40]}  Rxd8 {[%clk 0:01:44]} 28. Qxc3 {[%clk 0:00:35]}  e4 {[%clk 0:01:44]} 29. Qc2 {[%clk 0:00:29]}  e3 {[%clk 0:01:41]} 30. g4 {[%clk 0:00:15]}  Rd2 {[%clk 0:01:36]} 31. Qc4 {[%clk 0:00:09]}  e2 {[%clk 0:01:31]} 32. Kf2 {[%clk 0:00:08]}  Bd5 {[%clk 0:00:58]} 33. Qf4 {[%clk 0:00:05]}  Bd4+ {[%clk 0:00:11]} 34. Ke1 {[%clk 0:00:02]}  Bc3 {[%clk 0:00:11]} 35. Kf2 {[%clk 0:00:02]}  e1=Q+ {[%clk 0:00:10]} 36. Kxe1 {[%clk 0:00:02]}  Rd4+ {[%clk 0:00:10]} 0-1


[Site "https://www.chess.com"]

[Event "Titled Tuesday Blitz October 11 Early 2022"]
[White "Aldokhin, Ivan"]
[Black "Sohier, Julien"]
[WhiteFideId "24115720"]
[BlackFideId "645346"]
[WhiteElo "2313"]
[BlackElo "2209"]
[Result "1-0"]
[Round "08"]
[TimeControl "180+1"]
[Date "2022.10.12"]
[WhiteClock "0:00:05"]
[BlackClock "0:00:03"]

1. e4 {[%clk 0:03:00]}  e5 {[%clk 0:02:59]} 2. Nf3 {[%clk 0:03:00]}  Nc6 {[%clk 0:02:56]} 3. Bb5 {[%clk 0:03:01]}  a6 {[%clk 0:02:56]} 4. Ba4 {[%clk 0:03:01]}  Nf6 {[%clk 0:02:56]} 5. O-O {[%clk 0:03:02]}  Nxe4 {[%clk 0:02:55]} 6. Re1 {[%clk 0:03:03]}  Nc5 {[%clk 0:02:52]} 7. Bxc6 {[%clk 0:03:03]}  dxc6 {[%clk 0:02:52]} 8. Nxe5 {[%clk 0:03:04]}  Be7 {[%clk 0:02:51]} 9. b3 {[%clk 0:03:05]}  O-O {[%clk 0:02:48]} 10. Bb2 {[%clk 0:03:05]}  Bf5 {[%clk 0:02:42]} 11. d3 {[%clk 0:03:03]}  Nd7 {[%clk 0:02:37]} 12. Qf3 {[%clk 0:02:46]}  Be6 {[%clk 0:02:16]} 13. Ng4 {[%clk 0:02:42]}  Bxg4 {[%clk 0:01:51]} 14. Qxg4 {[%clk 0:02:38]}  Bf6 {[%clk 0:01:52]} 15. d4 {[%clk 0:02:37]}  Re8 {[%clk 0:01:49]} 16. Nd2 {[%clk 0:02:33]}  c5 {[%clk 0:01:37]} 17. Nf3 {[%clk 0:01:51]}  Rxe1+ {[%clk 0:01:28]} 18. Rxe1 {[%clk 0:01:50]}  cxd4 {[%clk 0:01:29]} 19. Bxd4 {[%clk 0:01:45]}  Bxd4 {[%clk 0:01:23]} 20. Nxd4 {[%clk 0:01:35]}  Nf6 {[%clk 0:01:21]} 21. Qf4 {[%clk 0:01:30]}  Qd7 {[%clk 0:00:57]} 22. h3 {[%clk 0:01:22]}  Nd5 {[%clk 0:00:45]} 23. Qe5 {[%clk 0:01:13]}  f6 {[%clk 0:00:39]} 24. Qe4 {[%clk 0:00:46]}  c6 {[%clk 0:00:30]} 25. Nf5 {[%clk 0:00:38]}  g6 {[%clk 0:00:25]} 26. Ne7+ {[%clk 0:00:30]}  Nxe7 {[%clk 0:00:24]} 27. Qxe7 {[%clk 0:00:31]}  Qxe7 {[%clk 0:00:20]} 28. Rxe7 {[%clk 0:00:31]}  Rd8 {[%clk 0:00:20]} 29. Rxb7 {[%clk 0:00:27]}  Rd1+ {[%clk 0:00:20]} 30. Kh2 {[%clk 0:00:27]}  Rd2 {[%clk 0:00:21]} 31. Kg3 {[%clk 0:00:19]}  Rxc2 {[%clk 0:00:20]} 32. a4 {[%clk 0:00:19]}  Rc3+ {[%clk 0:00:20]} 33. f3 {[%clk 0:00:19]}  a5 {[%clk 0:00:19]} 34. Kf4 {[%clk 0:00:19]}  h5 {[%clk 0:00:18]} 35. g4 {[%clk 0:00:18]}  hxg4 {[%clk 0:00:18]} 36. hxg4 {[%clk 0:00:18]}  g5+ {[%clk 0:00:17]} 37. Ke4 {[%clk 0:00:18]}  Kf8 {[%clk 0:00:16]} 38. f4 {[%clk 0:00:13]}  gxf4 {[%clk 0:00:15]} 39. Kxf4 {[%clk 0:00:13]}  Ke8 {[%clk 0:00:14]} 40. Kf5 {[%clk 0:00:13]}  Rg3 {[%clk 0:00:13]} 41. Ke6 {[%clk 0:00:13]}  Kd8 {[%clk 0:00:13]} 42. Rg7 {[%clk 0:00:11]}  Rxb3 {[%clk 0:00:09]} 43. Kxf6 {[%clk 0:00:11]}  Rb4 {[%clk 0:00:09]} 44. Ke6 {[%clk 0:00:12]}  Rxa4 {[%clk 0:00:08]} 45. g5 {[%clk 0:00:12]}  Rg4 {[%clk 0:00:06]} 46. Kf5 {[%clk 0:00:11]}  Rg1 {[%clk 0:00:05]} 47. Ra7 {[%clk 0:00:12]}  Ke8 {[%clk 0:00:04]} 48. Rxa5 {[%clk 0:00:10]}  Kd7 {[%clk 0:00:03]} 49. Ra7+ {[%clk 0:00:10]}  Kd6 {[%clk 0:00:04]} 50. g6 {[%clk 0:00:05]}  c5 {[%clk 0:00:04]} 51. Kf6 {[%clk 0:00:04]}  c4 {[%clk 0:00:04]} 52. Ra8 {[%clk 0:00:05]}  Kd5 {[%clk 0:00:03]} 53. Ra5+ {[%clk 0:00:05]} 1-0


[Site "https://www.chess.com"]